{"text_format":"1","workbook":"xlsx","n_sheets":5,"sheets":["Version","OPTA Generator","Werte","OPTA Tabelle","STC Hinweise"],"not_rendered":{"charts":0,"images":1,"macros":1,"external_links":0,"defined_names":8,"comments":0,"pivot_tables":0},"unopened":[],"bounds":{"document_bytes":16777216,"sheet_cells":100000,"rows_first":2000,"rows_last":500,"rows_between":2000,"halvings":0,"cell_chars":16384,"cell_head_chars":4096},"cells_cut":0,"cells_raw":0,"read":"whole","date_system":"1900"}

{"sheet":"Version","index":0,"n_rows":35,"n_cols":5,"rows_kept":35,"cut":false,"hidden":true,"merged":[]}
[]
[]
[]
[null,"Version","Datum","Bearbeiter","Änderungen"]
[null,"00.00.01","2011-07-04","Jens-Peter Staack","Erster Entwurf nach Vorlage FW Hessen\nQuelle: http://feuerwehr-maintal.de/index.php?mid=68&download=137"]
[null,"00.00.02","2011-07-04","Jens-Peter Staack","Änderungen: SVERWEIS\n(siehe Anmerkungen http://www.online-excel.de/excel/singsel.php?f=9)"]
[null,"00.00.03","2011-07-05","Jens-Peter Staack","#NV Fehler abfangen mit ISTFEHLER, Abfangen der 9 zeichen Normbezeichnung mit Wenn Abfrage"]
[null,"00.00.04","2011-07-05","Jens-Peter Staack","Einpflegen der Funknamen in BB\nQuelle: N:\\TP4\\23_Fleetmapping Planung\\01_Fleetmapping\\Fleetmapping nPol\\Funrufnamenschema.xls\n-> Nur FW implementiert in der Auswahlliste"]
[null,"00.00.05","2011-07-06","Jens-Peter Staack","Anmerkungen zu den Funknamen durch Hr. Schellhorn"]
[null,"00.00.06","2011-07-07","Jens-Peter Staack","Kleine Verbesserungen, u.a. Courier Schrift"]
[null,"00.00.07","2011-07-07","Jens-Peter Staack","Makro"]
[null,"00.00.08","2011-07-14","Jens-Peter Staack","Einpflegen der Daten \"Städt und Landkreis\" in die Tabelle \"Werte\""]
[null,"00.00.09","2011-07-15","Jens-Peter Staack","Einpflegen der überarbeiteten Daten der Städt und Landkreis in die Tabelle \"Werte\"\n(Quelldatei TEST nPol_akt1_23082010_V01_Gross_STC.xls)\nLayoutänderungen (OPTA Block unterhalb der Auswahl)"]
[null,"00.00.10","2011-07-21","Jens-Peter Staack","Funkrufnamen: Einpflegen des Katastrophenschutzes, Anpassungen entsprechender BB Vorgaben und OPTA Richtlinie"]
[null,"00.00.11","2011-08-19","Jens-Peter Staack","Korrektur für Auswahl MI ('MI ) und PR ('PR )"]
[null,"00.00.12","2011-09-09","Jens-Peter Staack","Korrektur der Ordnungskennzahlen 1-9 rechtsbündig, Einpflegen der derzeitigen Wertebereich aus dem Dokument BB Festlegung v0.0.6"]
[null,"00.00.13","2011-09-21","Jens-Peter Staack","Funktionsbezeichnungsfeld: Aufteilung in geteilte Auswahlliste"]
[null,"00.00.14","2011-09-23","Jens-Peter Staack","Funknamen -> Funktionsbezeichnung"]
[null,"00.00.15","2011-09-30","Jens-Peter Staack","Einpflegen der Wertebereiche aus dem Dokument BB spez. Festlegung zur OPTA, Version 0.2.0 (Version Vorlage zur Prüfung und Freigabe durch die PO DF BB"]
[null,"00.00.16","2012-04-12","Jens-Peter Staack","Korrekturen"]
[null,"00.01.00","2012-04-26","Jens-Peter Staack","Absicherung der Tabellenblätter"]
[null,"00.01.01","2013-02-27","Hans Donadel","In LK LOS Eintzräge 3&4 korrigiert; LK_00 wird auch als 00 in OPTA dargestellt"]
[null,"00.01.01","2013-04-16","Hans Donadel","OPTA-Darstellung Dienst-A und -B korrigiert."]
[null,"00.01.04","2014-01-08","Hr. Groß","Änderung der OZ im LK DS, 19 - Amt Unterspreewald entfällt, 09 - Amt Golßner Land \ngeändert in 09 - Amt Unterspreewald"]
[null,"00.01.05","2014-01-15","Hr. Groß","Ergänzung der Funktion IuK Technik in der Funktionsauswahl \"00-Führungskräfte und \nLeitstelle\"."]
[null,"00.01.06","2014-02-26","Hr. Aulhorn, Hr. Prast, Hr. Schellhorn","Einheiten gem. KatSV, OPTA-Richtlinie 1.6 Bund, Handfunkgerät ohne Fzg.Zuordnung"]
[null,"00.01.07","2014-03-14","Hr. Aulhorn ","Korrektur Ostprignitz-Ruppin, Barnim"]
[null,"00.01.08","2014-03-17","Hr. Aulhorn","Bugfix _MTF, _GSE hinzugefügt"]
[null,"00.01.09","2014-03-25","Hr. Aulhorn","Anpassung OPTA MTW BHP25"]
[null,"00.01.10","2015-06-17","Hr. Aulhorn","Anpassung OPTA ULF, FB Chem."]
[null,"00.01.11","2015-07-03","Hr. Aulhorn","Anpassung OPTA FR,HvO,SanvO"]
[null,"00.01.12","2015-10-28","Hr. Aulhorn","Bugfix SWS Problem"]
[null,"00.01.13","2016-12-19","Hr. Aulhorn","Fehler LK OPR TKZ 10->11 behoben, hinzugefügt: STLF, TW18-W"]
[null,"00.01.14","2016-12-19","Hr. Aulhorn","Vattenfall geändert zu Lausitz Energie AG"]
[null,"00.01.15","2017-02-14","Hr. Prast","Ergänzung der Funktion des Wachabteilungsleiter = WAL"]

{"sheet":"OPTA Generator","index":1,"n_rows":38,"n_cols":64,"rows_kept":38,"cut":false,"hidden":false,"merged":[[14,8,14,24],[24,1,24,20],[23,1,23,20],[12,8,12,24],[12,1,12,7],[13,1,13,7],[13,8,13,24],[14,1,14,7],[18,1,18,24],[9,1,9,7],[11,8,11,24],[11,1,11,7],[10,1,10,7],[7,8,7,24],[8,8,8,24],[9,8,9,24],[10,8,10,24],[8,1,8,7],[4,1,4,7],[4,8,4,24],[6,1,6,7],[6,8,6,24],[7,1,7,7]]}
[null,null,null,null,null,null,null,null,null,null,null,null,null,null,null,null,null,null,null,null,null,null,null,null,null,null,null,null,null,null,null,null,"BRB","CB ","FF ","P  ","BBL","BAR","EE ","HVL","LDS","LOS","MOL","OHV","OPR","OSL","PM ","PR ","SPN","TF ","UM ","RLS",null,null,"00","10","20","30","40","50","60","70","80","90"]
[null,"OPTA Generator für npol BOS",null,null,null,null,null,null,null,null,null,null,null,null,null,null,null,null,null,null,null,null,null,null,null,null,null,null,null,null,null,null,"KfSt BRB 00 – Stadt Brandenburg","KfSt CB 00 – Stadt Cottbus","KfSt FF 00 – Stadt Frankfurt/Oder","KfSt P 00 – Stadt Potsdam","Land BB 00","LK BAR 00 – Landkreis","LK EE 00 – Landkreis","LK HVL 00 – Landkreis","LK LDS 00 – Landkreis","LK LOS 00 – Landkreis","LK MOL 00 – Landkreis","LK OHV 00 – Landkreis","LK OPR 00 – Landkreis","LK OSL 00 – Landkreis","LK PM 00 – Landkreis","LK PR 00 – Landkreis","LK SPN 00 – Landkreis","LK TF 00 – Landkreis","LK UM 00 – Landkreis","Regionalleitstelle",null,null,"1. Stellv. Amtsbrandmeister","Abrollbehälter Führung","Flugfeldlöschfahrzeug","DL 16/4","HLF 10 (neue Norm)","GW-Atemschutz","Abrollbehälter","FW-Kran","Arzttruppkraftwagen","ABC-Erkundungskraftwagen"]
[null,"Version 00.01.15, 14.02.2017",null,null,null,null,null,null,null,null,null,null,null,null,null,null,null,null,null,null,null,null,null,null,null,null,null,null,null,null,null,null,"KfSt BRB 01 – Stadt Brandenburg","KfSt CB 01 – Cottbus Wache 1","KfSt FF 01 – Frankfurt/Oder Stadt (BF)","KfSt P 01 – Potsdam Stadt (BF)","Land BB LSTE","LK BAR 01 - Bernau b. Berlin","LK EE 01 - Stadt Bad Liebenwerda","LK HVL 01 - Stadt Falkensee","LK LDS 01 - Stadt Lübben (Spreewald)","LK LOS 01 - Stadt Beeskow","LK MOL 01 - Gemeinde Fredersdorf-Vogelsdorf","LK OHV 01 – Gemeinde Birkenwerder","LK OPR 01 - Stadt Neuruppin","LK OSL 01 - Stadt Lauchhammer/Spreewald","LK PM 01 - Gemeinde Kleinmachnow","LK PR 10 - Stadt Perleberg","LK SPN 01 - Stadt Forst","LK TF 01 - Stadt Luckenwalde","LK UM 01 - Stadt Angermünde",null,null,null,"1. Stellv. Einheitsführer (KatS./BSE/SanE)","Abrollbehälter mobile Fernmeldestelle","Großflughafenlöschfahrzeug","DL 22","HLF 10/6","GWG","Abrollbehälter BHP25","Kleineinsatzfahrzeug","B-NAW (Baby-NAW)","Betreuungs-Kombinationskraftwagen"]
[null,null,null,null,null,null,null,null,null,null,null,null,null,null,null,null,null,null,null,null,null,null,null,null,null,null,null,null,null,null,null,null,"KfSt BRB 08 – Göttin","KfSt CB 02 – Cottbus Wache 2","KfSt FF 02 – Bossen","KfSt P 02 – Babelsberg","Land BB Prüfstelle","LK BAR 02 - Eberswalde","LK EE 02 - Stadt Elsterwerda","LK HVL 02 - Stadt Ketzin","LK LDS 02 – Gemeinde Bestensee","LK LOS 02 - Stadt Eisenhüttenstadt","LK MOL 02 - Gemeinde Neuenhagen b. Berlin","LK OHV 02 – Gemeinde Glienicke/Nordbahn","LK OPR 02 - Stadt Wittstock / Dosse","LK OSL 02 - Stadt Schwarzheide","LK PM 02 - Gemeinde Seddiner See","LK PR 20 - Gemeinde Karstädt","LK SPN 02 - Stadt Guben","LK TF 02 - Stadt Ludwigsfelde","LK UM 02 - Stadt Prenzlau",null,null,null,"1. Stellv. Kreisbrandmeister","ELW 1","sonst. Tanklöschfahrzeuge","DL 30 W 50","HLF 16/12","GW-G 1","Schlauchwagen KatS","Krad","First Responder","Betreuungslastkraftwagen"]
[null,"Anmerkung:",null,null,null,null,null,null,"Eingabefelder sind Auswahllisten",null,null,null,null,null,null,null,null,null,null,null,null,null,null,null,null,null,null,null,null,null,null,null,"KfSt BRB 09 – Schmerzke","KfSt CB 11 – Cottbus Löschbezirk 1","KfSt FF 03 – Güldendorf","KfSt P 03 – Bornim",null,"LK BAR 03 - Gemeinde Ahrensfelde","LK EE 03 - Stadt Finsterwalde","LK HVL 03 - Stadt Nauen","LK LDS 03 – Gemeinde Eichwalde","LK LOS 03 - Stadt Fürstenwalde/Spree","LK MOL 03 - Gemeinde Petershagen-Eggersdorf","LK OHV 03 - Stadt Henningsdorf","LK OPR 03 – Gemeinde Fehrbellin","LK OSL 03 - Stadt Senftenberg","LK PM 03 - Stadt Teltow","LK PR 25 - Gemeinde Groß Pankow","LK SPN 03 - Gemeinde Kolkwitz","LK TF 03 - Gemeinde Nuthe-Urstromtal","LK UM 03 - Stadt Schwedt/Oder",null,null,null,"1. Stellv. Landesbranddirektor","ELW 2","Staffellöschfahrzeug","DL/DLK 12/9","HLF 20 (neue Norm)","GW-G 2","STW","LKW","Gerätewagen Rettungsdienst","CBRN-Erkundungswagen"]
[null,null,null,null,null,null,null,null,null,null,null,null,null,null,null,null,null,null,null,null,null,null,null,null,null,null,null,null,null,null,null,null,"KfSt BRB 10 – Kleinkreutz","KfSt CB 12 – Cottbus Löschbezirk 2","KfSt FF 04 – Hohenwalde","KfSt P 04 – Bornstedt",null,"LK BAR 04 - Gemeinde Schorfheide","LK EE 04 - Stadt Doberlug-Kirchhain","LK HVL 04 - Stadt Premnitz","LK LDS 04 - Stadt Königs Wusterhausen","LK LOS 04 - Stadt Erkner","LK MOL 04 - Stadt Seelow","LK OHV 04 - Stadt Hohen Neuendorf","LK OPR 04 – Gemeinde Heiligengrabe","LK OSL 04 - Amt Altdöbern","LK PM 04 - Stadt Werder","LK PR 30 - Stadt Wittenberge","LK SPN 04 - Stadt Spremberg","LK TF 04 - Gemeinde Am Mellensee","LK UM 04 - Stadt Templin",null,null,null,"1. Stellv. Leiter Berufsfeuerwehr","ELW 3","Tanklöschfahrzeug 2000","DL/DLK 16/4","HLF 20/16","GW-Höhenrettung","SW 1000","Löschboot LB","Großraum RTW","CBRN-Messleitkomponente"]
[null,null,null,null,null,null,null,null,"Auswahl",null,null,null,null,null,null,null,null,null,null,null,null,null,null,null,null,null,"Wert","Bemerkung","Stellen",null,null,null,"KfSt BRB 11 – Kirchmöser","KfSt CB 13 – Cottbus Löschbezirk 3","KfSt FF 05 – Klistow","KfSt P 05 – Drewitz",null,"LK BAR 05 - Amt Biesenthal-Barnim","LK EE 05 - Amt Elsterland","LK HVL 05 - Stadt Rathenow","LK LDS 05 – Gemeinde Schulzendorf","LK LOS 05 - Gemeinde Schöneiche b. Berlin","LK MOL 05 - Stadt Strausberg","LK OHV 05 – Gemeinde Leegebruch","LK OPR 05 - Stadt Kyritz","LK OSL 06 - Stadt Calau","LK PM 05 - Stadt Beelitz","LK PR 35 - Gemeinde Gumtow","LK SPN 05 – Amt Burg","LK TF 05 - Stadt Baruth/Mark","LK UM 06 - Gemeinde Boitzenburger Land",null,null,null,"1. Stellv. Leiter Werkfeuerwehr","FÜKW (DDR Produktion, W353, B1000)","Tanklöschfahrzeug 3000","DL/DLK 18/12","KLF","GW-Licht","SW 12","Mehrzweckboot","Helfer vor Ort","Dekon LKW"]
[null,"Bundesland",null,null,null,null,null,null,"Brandenburg",null,null,null,null,null,null,null,null,null,null,null,null,null,null,null,null,"","BB","fester Wert","1-2",null,null,null,"KfSt BRB 12 – Plaue","KfSt CB 14 – Cottbus Löschbezirk 4","KfSt FF 06 – Lichtenberg","KfSt P 06 – Eiche",null,"LK BAR 06 - Gemeinde Wandlitz","LK EE 06 - Stadt Falkenberg/Elster","LK HVL 06 – Gemeinde Brieselang","LK LDS 06 – Gemeinde Wildau","LK LOS 06 - Gemeinde Woltersdorf","LK MOL 06 - Stadt Altlandsberg","LK OHV 06 - Stadt Oranienburg","LK OPR 06 - Amt Lindow (Mark)","LK OSL 07 - Stadt Großräschen","LK PM 06 - Amt Beetzsee","LK PR 40 - Amt Bad Wilsnack / Weisen","LK SPN 06 – Amt Döbern-Land","LK TF 06 - Gemeinde Blankenfelde-Mahlow","LK UM 07 - Amt Brüssow (Uckermark)",null,null,null,"1. Stellv. Wehrführer","Kommandowagen","Tanklöschfahrzeug 4000","DL/DLK 23/12(DL30)","LF 10 (neue Norm)","GW-Logistik 1","SW 14","RTGW","ITW","Dekontaminationslastkraftwagen, Personen"]
[null,"Organisation",null,null,null,null,null,null,null,null,null,null,null,null,null,null,null,null,null,null,null,null,null,null,null,{"$f":"IF(ISERROR(LOOKUP(I9,Organisation,Werte!C2:C16)),\"\",LOOKUP(I9,Organisation,Werte!C2:C16))","v":""},{"$f":"Z9&REPT(\" \",3-LEN(Z9))","v":"   "},"Organisation, 3 stellig","3-5",null,null,null,"KfSt BRB 13 – Mahlenzien","KfSt CB BSE","KfSt FF 07 – Lossow","KfSt P 07 – Klein-Glienicke",null,"LK BAR 07 - Werneuchen","LK EE 07 - Stadt Herzberg (Elster)","LK HVL 07 – Gemeinde Dallgow-Döberitz","LK LDS 07 – Gemeinde Zeuthen","LK LOS 07 – Amt Brieskow-Finkenherd ","LK MOL 07 - Stadt Bad Freienwalde (Oder)","LK OHV 07 - Stadt Velten","LK OPR 07 - Amt Neustadt / Dosse","LK OSL 08 - Stadt Lübbenau/Spreewald ","LK PM 07 - Stadt Belzig","LK PR 45 - Gemeinde Plattenburg","LK SPN 07 - Stadt Drebkau","LK TF 07 - Amt Dahme/Mark","LK UM 08 - Amt Gartz (Oder)",null,null,null,"2. Stellv. Amtsbrandmeister","LKW 3,5t","Tanklöschfahrzeug 5000","DLA (K) 12/9","LF 10/6","GW-Logistik 2","SW 2000","SEG-Technik","KTW","Dekontaminationslastkraftwagen, Personen 2"]
[null,"Landkreis",null,null,null,null,null,null,null,null,null,null,null,null,null,null,null,null,null,null,null,null,null,null,null,{"$f":"IF(ISERROR(LOOKUP(I10,Landkreis,Werte!E2:E21)),\"\",LOOKUP(I10,Landkreis,Werte!E2:E21))","v":""},{"$f":"Z10&REPT(\" \",3-LEN(Z10))","v":"   "},"Landkreis, 3 stellig","6-8",null,null,null,"KfSt BRB 14 – Gollwitz","KfSt CB Feuerwehr Technisches Zentrum","KfSt FF 08 – Frankfurt/Oder Stadt (FF Mitte)","KfSt P 08 – Sacrow",null,"LK BAR 08 - Amt Joachimsthal-Schorfheide","LK EE 08 – Amt Kleine Elster (Niederlausitz)","LK HVL 08 – Gemeinde Milower Land","LK LDS 08 – Gemeinde Heidsee","LK LOS 08 - Stadt Friedland","LK MOL 08 – Amt Barnim-Oderbruch","LK OHV 08 - Stadt Fürstenberg/Havel","LK OPR 08 - Stadt Rheinsberg","LK OSL 09 - Amt Ortrand","LK PM 08 - Amt Brück","LK PR 50 - Amt Lenzen-Elbaue","LK SPN 10 – Gemeinde Neuhausen/Spree","LK TF 08 - Stadt Jüterbog","LK UM 09 - Amt Gerswalde",null,null,null,"2. Stellv. Einheitsführer (KatS./BSE/SanE)","Luftbeobachter","Tankwagen 18000","DLA (K) 18/9","LF 16","GW-Meß","SW 2000 Tr","Tankwagen/Tankzug","KTW 4-Tragen","Dekontaminationslastkraftwagen, Schnelldekontamination"]
[null,"Örtliche Zuordnung",null,null,null,null,null,null,null,null,null,null,null,null,null,null,null,null,null,null,null,null,null,null,null,{"$f":"IF(ISERROR(LOOKUP(I11,OZ,Werte!G2:G354)),\"\",LOOKUP(I11,OZ,Werte!G2:G354))","v":""},{"$f":"Z11&REPT(\" \",5-LEN(Z11))","v":"     "},"Vgl. erste Teilkennziffern BOS Funk","9-13",null,null,null,"KfSt BRB 15 – Wust","KfSt CB Gefahrstoffeinheit","KfSt FF 09 – Rosengarten","KfSt P 09 – Grube",null,"LK BAR 09 - Amt Britz-Chorin-Oderberg","LK EE 09 - Stadt Mühlberg/Elbe","LK HVL 09 – Gemeinde Schönwalde-Glien","LK LDS 09 – Amt Unterspreewald","LK LOS 09 - Gemeinde Grünheide (Mark)","LK MOL 09 – Amt Falkenberg-Höhe","LK OHV 09 - Amt Gransee","LK OPR 09 - Amt Temnitz","LK OSL 10 - Amt Ruhland","LK PM 11 - Gemeinde Groß Kreutz (Havel)","LK PR 60 - Stadt Pritzwalk","LK SPN 11 - Amt Peitz","LK TF 09 - Gemeinde Großbeeren","LK UM 10 - Amt Gramzow",null,null,null,"2. Stellv. Kreisbrandmeister","Mannschaftstransportfahrzeug","TLF 10/18","DLA (K) 23/12","LF 16/12","GW-Nachschub","SW 3000",null,"KTW Typ B ","Dekontaminationslastkraftwagen, Verletzte"]
[null,"Funktionsbezeichnung\nVorauswahl",null,null,null,null,null,null,null,null,null,null,null,null,null,null,null,null,null,null,null,null,null,null,null,{"$f":"IF(ISERROR(LOOKUP(I12,Funktionsbezeichnung_Vorauswahl,Werte!I2:I11)),\"\",LOOKUP(I12,Funktionsbezeichnung_Vorauswahl,Werte!I2:I11))","v":""},null,"Vorauswahl für das Feld Funktionsbezeichnung","n.a.",null,null,null,"KfSt BRB BSE","KfSt CB Sanitätseinheit","KfSt FF BSE","KfSt P 10 – Potsdam Stadt (FF)",null,"LK BAR 10 - Gemeinde Panketal","LK EE 10 - Amt Plesa","LK HVL 10 – Gemeinde Wustermark","LK LDS 10 – Gemeinde Heideblick","LK LOS 10 – Amt Neuzelle","LK MOL 10 – Amt Golzow","LK OHV 10 - Stadt Kremmen","LK OPR 11 – Gemeinde Wusterhausen / Dosse","LK OSL 11 – Gemeinde Schipkau","LK PM 12 - Gemeinde Kloster Lehnin","LK PR 70 - Amt Putlitz-Berge","LK SPN 12 – Gemeinde Schenkendöbern","LK TF 10 - Gemeinde Niederer Fläming","LK UM 11 - Gemeinde Uckerland",null,null,null,"2. Stellv. Landesbranddirektor","Mannschaftstransportwagen","TLF 10/20","GM","LF 16-TS","GW-Öl","WLF",null,"KTW-A1","ErkW"]
[null,"Funktionsbezeichnung\n(Normbezeichnung)",null,null,null,null,null,null,null,null,null,null,null,null,null,null,null,null,null,null,null,null,null,null,null,{"$f":"IF(ISERROR(LOOKUP(I13,Funktionsbezeichnung,Werte!K2:K210)),\"\",LOOKUP(I13,Funktionsbezeichnung,Werte!K2:K210))","v":""},{"$f":"Z13&REPT(\" \",8-LEN(Z13))","v":"        "},"Normbezeichnung gem. Anlage 3 OPTA Richtlinie (Version 1.4 vom 29.08.2010), 8-stellig","14-21",null,null,null,"KfSt BRB Feuerwehr Technisches Zentrum",null,"KfSt FF Feuerwehr Technisches Zentrum ","KfSt P 11 – Fahrland",null,"LK BAR Brandschutzeinheit","LK EE 11 - Gemeinde Röderland","LK HVL 11 - Amt Friesack","LK LDS 12 - Stadt Luckau","LK LOS 11 – Amt Odervorland","LK MOL 11 - Gemeinde Hoppegarten","LK OHV 11 - Stadt Liebenwalde","LK OPR 13 - Bundeswehr TrübPl WK","LK OSL 12 - Stadt Vetschau/Spreewald","LK PM 13 - Gemeinde Michendorf","LK PR 80 - Amt Meyenburg","LK SPN 13 - Stadt Welzow","LK TF 11 - Gemeinde Niedergörsdorf","LK UM 12 - Stadt Lychen",null,null,null,"2. Stellv. Leiter Berufsfeuerwehr","MTW BHP25","TLF 16 W 50","HAB 18/12","LF 20 (neue Norm)","GW-Strahlenschutz","WLF 18",null,"KTW-A2","Fahrzeug der Rettungshundestaffel"]
[null,"Ordnungskennung",null,null,null,null,null,null,null,null,null,null,null,null,null,null,null,null,null,null,null,null,null,null,null,{"$f":"IF(ISERROR(LOOKUP(I14,Ordnungskennung,Werte!M2:M101)),\"\",LOOKUP(I14,Ordnungskennung,Werte!M2:M101))","v":""},{"$f":"Z14&REPT(\" \",2-LEN(Z14))","v":"  "},"Laufende Nummer","22-23",null,null,null,"KfSt BRB Gefahrstoffeinheit",null,"KfSt FF Gefahrstoffeinheit","KfSt P 12 – Groß Glienicke",null,"LK BAR Feuerwehr Technisches Zentrum","LK EE 12 - Amt Schlieben","LK HVL 12 - Amt Nennhausen","LK LDS 13 – Gemeinde Märkische Heide","LK LOS 12 - Gemeinde Rietz-Neuendorf","LK MOL 12 – Amt Lebus","LK OHV 12 – Gemeinde Löwenberger Land","LK OPR Brandschutzeinheit","LK OSL BASF - BASF Schwartzheide GmbH","LK PM 14 - Amt Niemegk","LK PR Brandschutzeinheit","LK SPN Brandschutzeinheit","LK TF 12 - Gemeinde Rangsdorf","LK UM 13 - Gemeinde Nordwestuckermark",null,null,null,"2. Stellv. Leiter Werkfeuerwehr","MTW FüTr","TLF 16/24 Trupp","HAB 23/12","LF 20/16","GW-Tauchen (TauchEinsatzFahrzeug)","WLF 26",null,"NAW","Gerätewagen Behandlung"]
[null,"Ergänzung / Funkgerät",null,null,null,null,null,null,null,null,null,null,null,null,null,null,null,null,null,null,null,null,null,null,null,{"$f":"IF(ISERROR(LOOKUP(I15,Funkgeraet,Werte!O2:O38)),\"\",LOOKUP(I15,Funkgeraet,Werte!O2:O38))","v":""},{"$f":"Z15&REPT(\" \",1-LEN(Z15))","v":" "},"Ggf. Kennziffer 1 stellig (1-9, A-Z), z.B. Funkgerät","24",null,null,null,"KfSt BRB Sanitätseinheit",null,"KfSt FF Sanitätseinheit","KfSt P 13 – Marquardt",null,"LK BAR Gefahrstoffeinheit","LK EE 13 - Stadt Schönwalde","LK HVL 13 - Amt Rihnow","LK LDS 14 - Stadt Mittenwalde","LK LOS 13 – Amt Scharmützelsee","LK MOL 13 - Gemeinde Letschin","LK OHV 13 – Gemeinde Oberkrämer","LK OPR Feuerwehr Technisches Zentrum","LK OSL Brandschutzeinheit","LK PM 15 - Gemeinde Nuthetal","LK PR Gefahrstoffeinheit","LK SPN Feuerwehr Technisches Zentrum","LK TF 13 - Stadt Trebbin","LK UM 14 - Amt Oder-Welse",null,null,null,"2. Stellv. Wehrführer","MTW SEG Sanität","TLF 16/25","TLK 42","LF 24","GW-Tauchtrupp",null,null,"NEF","Gerätewagen Betreuung"]
[null,null,null,null,null,null,null,null,null,null,null,null,null,null,null,null,null,null,null,null,null,null,null,null,null,null,null,null,null,null,null,null,null,null,null,"KfSt P 14 – Neufahrland",null,"LK BAR Medical Task Force","LK EE 14 - Amt Schradenland","LK HVL Brandschutzeinheit","LK LDS 15 - Amt Lieberose-Oberspreewald ","LK LOS 14 – Amt Schlaubetal","LK MOL 14 – Amt Märkische-Schweiz","LK OHV 15 – Gemeinde Mühlenbecker Land","LK OPR Gefahrstoffeinheit","LK OSL Feuerwehr Technisches Zentrum","LK PM 16 - Gemeinde Schwielowsee","LK PR Medical Task Force","LK SPN Gefahrstoffeinheit","LK TF 14 - Stadt Zossen","LK UM Brandschutzeinheit",null,null,null,"A-Dienst","MTW+","TLF 16/45","TM","LF 8","GW-Transport",null,null,"Rettungsboot","Gerätewagen Dekon Personal"]
[null,null,null,null,null,null,null,null,null,null,null,null,null,null,null,null,null,null,null,null,null,null,null,null,null,null,null,null,null,null,null,null,null,null,null,"KfSt P 15 – Uetz / Paaren",null,"LK BAR Sanitätseinheit","LK EE 15 - Stadt Sonnenwalde","LK HVL Feuerwehr Technisches Zentrum","LK LDS 16 - Amt Schenkenländchen","LK LOS 15 – Amt Spreenhagen","LK MOL 15 - Stadt Müncheberg","LK OHV 16 - Stadt Zehdenick","LK OPR Krono - Kronotex GmbH & Co. KG","LK OSL Gefahrstoffeinheit","LK PM 17 - Gemeinde Stahnsdorf",null,"LK SPN Medical Task Force","LK TF Brandschutzeinheit","LK UM Feuerwehr Technisches Zentrum",null,null,null,"Amtsbrandmeister","SEG Betreuung","TLF 20/30",null,"LF 8/6","GW-Versorgung",null,null,"Rettungshubschrauber","Gerätewagen Dekon Verletzter"]
[null,1,{"$f":"B18+1","v":2},{"$f":"C18+1","v":3},4,5,6,7,8,9,10,11,12,13,14,15,16,17,18,19,20,21,22,23,24,null,null,null,null,null,null,null,null,null,null,"KfSt P 16 – Golm",null,null,"LK EE 16 - Stadt Uebigau-Wahrenbrück","LK HVL Gefahrstoffeinheit","LK LDS 17 – Gemeinde Schönefeld","LK LOS 16 - Gemeinde Steinhöfel","LK MOL 16 – Amt Neuhardenberg","LK OHV Brandschutzeinheit","LK OPR Medical Task Force","LK OSL Medical Task Force","LK PM 18 - Stadt Treuenbrietzen",null,"LK SPN Sanitätseinheit","LK TF Feuerwehr Technisches Zentrum","LK UM Gefahrstoffeinheit",null,null,null,"B-Dienst","SEG-FM","TLF 20/40",null,"LF 8-TS","GW-Wassergefahren",null,null,"RTW","Gerätewagen Sanität (z.B. Medizinischen Task Force)"]
[null,"OPTA",null,null,null,null,null,null,null,null,null,null,null,null,null,null,null,null,null,null,null,null,null,null,null,null,null,null,null,null,null,null,null,null,null,"KfSt P 17 – Satzkorn",null,null,"LK EE Brandschutzeinheit","LK HVL Medical Task Force","LK LDS 22 – WF Tropical-Island Management GmbH","LK LOS 17 – Stadt Storkow (Mark)","LK MOL 17 - Gemeinde Rüdersdorf b. Berlin","LK OHV Feuerwehr Technisches Zentrum","LK OPR Sanitätseinheit","LK OSL Sanitätseinheit","LK PM 20 - Gemeinde Wiesenburg/Mark",null,"LK SPN WF Lausitz Energie AG","LK TF Gefahrstoffeinheit","LK UM Medical Task Force",null,null,null,"C-Dienst","tragbare FuG","TLF 20/40 Sonderlöschmittel",null,"LF KatS","GW-Wasserrettung",null,null,"Sanitäter vor Ort","Hundestaffel (allgemein)"]
[null,"01","02","03","04","05","06","07","08","09",10,11,12,13,14,15,16,17,18,19,20,21,22,23,24,null,null,null,null,null,null,null,null,null,null,"KfSt P BSE",null,null,"LK EE Feuerwehr Technisches Zentrum","LK HVL Sanitätseinheit","LK LDS Brandschutzeinheit","LK LOS 18 - Gemeinde Tauche","LK MOL 18 – Amt Seelow-Land","LK OHV Gefahrstoffeinheit",null,null,"LK PM 21 - Amt Wusterwitz",null,null,"LK TF Medical Task Force","LK UM Sanitätseinheit",null,null,null,"Einheitsführer (KatS./BSE/SanE)","Werkstattwagen","TLF 20/50",null,"MLF","RW 1",null,null,"SEG San","Krankentransportwagen Typ B"]
[null,{"$f":"MID($B$25,B18,1)","v":"B"},{"$f":"MID($B$25,C18,1)","v":"B"},{"$f":"MID($B$25,D18,1)","v":" "},{"$f":"MID($B$25,E18,1)","v":" "}," "," "," "," "," "," "," "," "," "," "," "," "," "," "," "," "," "," "," "," ",null,null,null,null,null,null,null,null,null,null,"KfSt P Feuerwehr Technisches Zentrum",null,null,"LK EE Gefahrstoffeinheit",null,"LK LDS Feuerwehr Technisches Zentrum","LK LOS Brandschutzeinheit","LK MOL 19 - Stadt Wriezen","LK OHV Medical Task Force",null,null,"LK PM 22 - Amt Ziesar",null,null,"LK TF Sanitätseinheit","LK UM WF Leipa",null,null,null,"Fachberater Chemie","Zugfahrz. Küche","TLF 24/48",null,"MTW TSA","RW 2",null,null,null,"Lastkraftwagen Logistik Betreuung"]
[null,null,null,null,null,null,null,null,null,null,null,null,null,null,null,null,null,null,null,null,null,null,null,null,null,null,null,null,null,null,null,null,null,null,null,"KfSt P Gefahrstoffeinheit",null,null,"LK EE Medical Task Force",null,"LK LDS Gefahrstoffeinheit","LK LOS Feuerwehr Technisches Zentrum","LK MOL Brandschutzeinheit","LK OHV Sanitätseinheit",null,null,"LK PM 24 - Bundeswehr TrübPl WK",null,null,"LK TF WF MB","LK UM WF PCK",null,null,null,"Führungsstelle besondere Lagen, Stab",null,"TLF 24/50",null,"StLF 10/6","RW 3",null,null,null,"Mobile Personenauskunftsstelle (mPASt)"]
[null,null,null,null,null,null,null,null,null,null,null,null,null,null,null,null,null,null,null,null,null,null,null,null,null,null,null,null,null,null,null,null,null,null,null,"KfSt P Sanitätseinheit",null,null,"LK EE Sanitätseinheit",null,"LK LDS Medical Task Force","LK LOS Gefahrstoffeinheit","LK MOL Feuerwehr Technisches Zentrum",null,null,null,"LK PM Brandschutzeinheit",null,null,null,"LK UM WF UPM",null,null,null,"IuK Technik",null,"TLF 32 Tatra",null,"Tragkraftspritzenanhänger","Sonstige GW",null,null,null,"MTW Dekon Verletzter"]
[null,"Generierte OPTA Zeichenkette",null,null,null,null,null,null,null,null,null,null,null,null,null,null,null,null,null,null,null,null,null,null,null,null,null,null,null,null,null,null,null,null,null,null,null,null,null,null,"LK LDS Sanitätseinheit","LK LOS Medical Task Force","LK MOL Gefahrstoffeinheit",null,null,null,"LK PM Feuerwehr Technisches Zentrum",null,null,null,null,null,null,null,"Kreisbrandmeister",null,"TLF 8/18",null,"TSF","sonstige RW"]
[null,{"$f":"AA8&AA9&AA10&AA11&AA13&AA14&AA15","v":"BB                      "},null,null,null,null,null,null,null,null,null,null,null,null,null,null,null,null,null,null,null,null,null,null,null,null,null,null,null,null,null,null,null,null,null,null,null,null,null,null,"LK LDS WF Airport Berlin Brandenburg International BER","LK LOS Sanitätseinheit","LK MOL Medical Task Force",null,null,null,"LK PM Gefahrstoffeinheit",null,null,null,null,null,null,null,"Landesbranddirektor",null,"Tro TLF 16",null,"TSF-W","VGW"]
[null,null,null,null,null,null,null,null,null,null,null,null,null,null,null,null,null,null,null,null,null,null,null,null,null,null,null,null,null,null,null,null,null,null,null,null,null,null,null,null,null,"LK LOS WF Arcelor Mittal","LK MOL Sanitätseinheit",null,null,null,"LK PM Medical Task Force",null,null,null,null,null,null,null,"Leitender Notarzt",null,"Tro-LF",null,"Universal Löschfahrzeug","VRW"]
[null,null,null,null,null,null,null,null,null,null,null,null,null,null,null,null,null,null,null,null,null,null,null,null,null,null,null,null,null,null,null,null,null,null,null,null,null,null,null,null,null,null,null,null,null,null,"LK PM Sanitätseinheit",null,null,null,null,null,null,null,"Leiter Berufsfeuerwehr",null,null,null,"Vorauslöschfahrzeug"]
[null,null,null,null,null,null,null,null,null,null,null,null,null,null,null,null,null,null,null,null,null,null,null,null,null,null,null,null,null,null,null,null,null,null,null,null,null,null,null,null,null,null,null,null,null,null,null,null,null,null,null,null,null,null,"Leiter Werkfeuerwehr"]
[null,"Vorlage",null,null,null,null,null,null,"=BEREICH.VERSCHIEBEN(A:E;1;VERGLEICH(H1;A1:E1;0)-1;ANZAHL2(INDEX(A:E;;VERGLEICH(H1;A1:E1;0)))-1;1)",null,null,null,null,null,null,null,null,null,null,null,null,null,null,null,null,null,null,null,null,null,null,null,null,null,null,null,null,null,null,null,null,null,null,null,null,null,null,null,null,null,null,null,null,null,"Regionalleitstelle Brandenburg"]
[null,"Auswahlfeld in I11",null,null,null,null,null,null,"=BEREICH.VERSCHIEBEN(AG:AZ;1;VERGLEICH(AA10;AG1:AZ1;0)-1;ANZAHL2(INDEX(AG:AZ;;VERGLEICH(AA10;AG1:AZ1;0)))-1;1)",null,null,null,null,null,null,null,null,null,null,null,null,null,null,null,null,null,null,null,null,null,null,null,null,null,null,null,null,null,null,null,null,null,null,null,null,null,null,null,null,null,null,null,null,null,"Regionalleitstelle Lausitz"]
[null,"Auswahlfeld in I13",null,null,null,null,null,null,"=BEREICH.VERSCHIEBEN(BC:BL;1;VERGLEICH(Z12;BC1:BL1;0)-1;ANZAHL2(INDEX(BC:BL;;VERGLEICH(Z12;BC1:BL1;0)))-1;1)",null,null,null,null,null,null,null,null,null,null,null,null,null,null,null,null,null,null,null,null,null,null,null,null,null,null,null,null,null,null,null,null,null,null,null,null,null,null,null,null,null,null,null,null,null,"Regionalleitstelle Nordost"]
[null,"Staack: Makro nimmt FEST B25! Entsp. Makro ändern falls Zeilen sich verschieben.",null,null,null,null,null,null,null,null,null,null,null,null,null,null,null,null,null,null,null,null,null,null,null,null,null,null,null,null,null,null,null,null,null,null,null,null,null,null,null,null,null,null,null,null,null,null,null,null,null,null,null,null,"Regionalleitstelle Nordwest (Potsdam)"]
[null,null,null,null,null,null,null,null,null,null,null,null,null,null,null,null,null,null,null,null,null,null,null,null,null,null,null,null,null,null,null,null,null,null,null,null,null,null,null,null,null,null,null,null,null,null,null,null,null,null,null,null,null,null,"Organisationsleiter Rettungsdienst"]
[null,null,null,null,null,null,null,null,null,null,null,null,null,null,null,null,null,null,null,null,null,null,null,null,null,null,null,null,null,null,null,null,null,null,null,null,null,null,null,null,null,null,null,null,null,null,null,null,null,null,null,null,null,null,"Regionalleitstelle Oderland"]
[null,null,null,null,null,null,null,null,null,null,null,null,null,null,null,null,null,null,null,null,null,null,null,null,null,null,null,null,null,null,null,null,null,null,null,null,null,null,null,null,null,null,null,null,null,null,null,null,null,null,null,null,null,null,"Wachabteilungsleiter"]
[null,null,null,null,null,null,null,null,null,null,null,null,null,null,null,null,null,null,null,null,null,null,null,null,null,null,null,null,null,null,null,null,null,null,null,null,null,null,null,null,null,null,null,null,null,null,null,null,null,null,null,null,null,null,"Wache"]
[null,null,null,null,null,null,null,null,null,null,null,null,null,null,null,null,null,null,null,null,null,null,null,null,null,null,null,null,null,null,null,null,null,null,null,null,null,null,null,null,null,null,null,null,null,null,null,null,null,null,null,null,null,null,"Wehrführer"]
[null,null,null,null,null,null,null,null,null,null,null,null,null,null,null,null,null,null,null,null,null,null,null,null,null,null,null,null,null,null,null,null,null,null,null,null,null,null,null,null,null,null,null,null,null,null,null,null,null,null,null,null,null,null,"z. b. V. Land"]

{"sheet":"Werte","index":2,"n_rows":356,"n_cols":17,"rows_kept":356,"cut":false,"hidden":true,"merged":[]}
[null,"Organisation","Wert_Organisation","Landkreis","Werte_Lankreis","OZ","Wert OZ","Funktionsbezeichnung Vorauswahl","Funknamen Vorauswahl","Funktionsbezeichnung","Werte für die OPTA (Zeichen 14 – 21,\n8-stellig)","Ordnungskennung","WERT_Ordnungskennung","Funkgerät","WERT_Funkgerät",null,"Länge#"]
[null,"Arbeiter-Samariter-Bund","ASB","0 - Land BB","BBL","KfSt BRB 00 – Stadt Brandenburg","_00","00 – Leitstelle und Führungskräfte","00","1. Stellv. Amtsbrandmeister","ABM-1","01","_1","    Handsprechfunkgerät ohne Fahrzeugzuordnung","",null,{"$f":"LEN(K2)","v":5}]
[null,"Bergwacht im Deutschen Roten Kreuz","BRG","1 - Brandenburg an der Havel","BRB","KfSt BRB 01 – Stadt Brandenburg","_1","10 – Führungs- und Versorgungsfahrzeuge","10","1. Stellv. Einheitsführer (KatS./BSE/SanE)","EF-1","02","_2"," 1. Handsprechfunkgerät des Fahrzeuges","1",null,{"$f":"LEN(K3)","v":4}]
[null,"Deutsche Lebensrettungs-Gesellschaft","DLR","1 - Cottbus","CB ","KfSt BRB 08 – Göttin","_8","20 – Tank- und Pulverlöschfahrzeuge","20","1. Stellv. Kreisbrandmeister","KBM-1","03","_3"," 2. Handsprechfunkgerät des Fahrzeuges","2",null,5]
[null,"Deutsches Rotes Kreuz","DRK","1 - Frankfurt (Oder)","FF ","KfSt BRB 09 – Schmerzke","_9","30 – Hubrettungsfahrzeuge","30","1. Stellv. Landesbranddirektor","LBD-1","04","_4"," 3. Handsprechfunkgerät des Fahrzeuges","3",null,5]
[null,"Feuerwehr","FW ","1 - Potsdam","P  ","KfSt BRB 10 – Kleinkreutz","_10","40 – Löschgruppen und Tragkraftspritzenfahrzeuge","40","1. Stellv. Leiter Berufsfeuerwehr","LTR.BF-1","05","_5"," 4. Handsprechfunkgerät des Fahrzeuges","4",null,8]
[null,"Innenministerium des Bundes und der Länder","IM","2 - Barnim ","BAR","KfSt BRB 11 – Kirchmöser","_11","50 – Rüst- und Gerätewagen","50","1. Stellv. Leiter Werkfeuerwehr","LTR.WF-1","06","_6"," 5. Handsprechfunkgerät des Fahrzeuges","5",null,8]
[null,"Johanniter Unfallhilfe","JUH","2 - Dahme-Spreewald","LDS","KfSt BRB 12 – Plaue","_12","60 – Schlauchwagen, Wechsellader Fahrzeuge","60","1. Stellv. Wehrführer","WEFÜ-1","07","_7"," 6. Handsprechfunkgerät des Fahrzeuges","6",null,6]
[null,"Katastrophenschutzeinheiten","KAT","2 - Elbe-Elster ","EE ","KfSt BRB 13 – Mahlenzien","_13","70 – Sonstige Fahrzeuge","70","2. Stellv. Amtsbrandmeister","ABM-2","08","_8"," 7. Handsprechfunkgerät des Fahrzeuges","7",null,5]
[null,"Malteser Hilfsdienst","MHD","2 - Havelland ","HVL","KfSt BRB 14 – Gollwitz","_14","80 – Rettungsdienstfahrzeuge","80","2. Stellv. Einheitsführer (KatS./BSE/SanE)","EF-2","09","_9"," 8. Handsprechfunkgerät des Fahrzeuges","8",null,4]
[null,"Regional Leitstellen","RL","2 - Märkisch-Oderland ","MOL","KfSt BRB 15 – Wust","_15","90 – Zur besonderen Verwendung des Bundes / Katastrophenschutz","90","2. Stellv. Kreisbrandmeister","KBM-2","10","10"," 9. Handsprechfunkgerät des Fahrzeuges","9",null,5]
[null,"Rettungshubschrauber","CHR","2 - Oberhavel ","OHV","KfSt BRB BSE","_BSE",null,null,"2. Stellv. Landesbranddirektor","LBD-2","11","11","01. fest verbautes Funkgerät","",null,5]
[null,"Sonstige ","SON","2 - Oberspreewald-Lausitz","OSL","KfSt BRB Feuerwehr Technisches Zentrum","_FTZ",null,null,"2. Stellv. Leiter Berufsfeuerwehr","LTR.BF-2","12","12","02. fest verbautes Funkgerät","A",null,8]
[null,"sonstige anerkannte Rettungsdienste / Kommunaler Rettungsdienst","RD","2 - Oder-Spree ","LOS","KfSt BRB Gefahrstoffeinheit","_GSE",null,null,"2. Stellv. Leiter Werkfeuerwehr","LTR.WF-2","13","13","03. fest verbautes Funkgerät","B",null,8]
[null,"Wasserwacht","WW","2 - Ostprignitz-Ruppin ","OPR","KfSt BRB Sanitätseinheit","_SANE",null,null,"2. Stellv. Wehrführer","WEFÜ-2","14","14","04. fest verbautes Funkgerät","C",null,6]
[null,"Werkfeuerwehr","FW","2 - Potsdam-Mittelmark ","PM ","KfSt CB 00 – Stadt Cottbus","_00",null,null,"ABC-Erkundungskraftwagen","ABC-ERK","15","15","05. fest verbautes Funkgerät","D",null,7]
[null,null,null,"2 - Prignitz ","PR ","KfSt CB 01 – Cottbus Wache 1","_1",null,null,"Abrollbehälter","AB","16","16","06. fest verbautes Funkgerät","E",null,2]
[null,null,null,"2 - Spree-Neiße","SPN","KfSt CB 02 – Cottbus Wache 2","_2",null,null,"Abrollbehälter BHP25","AB BHP25","17","17","07. fest verbautes Funkgerät","F",null,8]
[null,null,null,"2 - Teltow-Fläming ","TF ","KfSt CB 11 – Cottbus Löschbezirk 1","_11",null,null,"Abrollbehälter Führung","AB FÜ","18","18","08. fest verbautes Funkgerät","G",null,5]
[null,null,null,"2 - Uckermark ","UM ","KfSt CB 12 – Cottbus Löschbezirk 2","_12",null,null,"Abrollbehälter mobile Fernmeldestelle","MOFÜST","19","19","09. fest verbautes Funkgerät","H",null,6]
[null,null,null,"3 - Regional Leiststelle","RLS","KfSt CB 13 – Cottbus Löschbezirk 3","_13",null,null,"A-Dienst","A-DIENST","20","20","10. fest verbautes Funkgerät","I",null,8]
[null,null,null,null,null,"KfSt CB 14 – Cottbus Löschbezirk 4","_14",null,null,"Amtsbrandmeister","ABM","21","21","11. fest verbautes Funkgerät","J",null,3]
[null,null,null,null,null,"KfSt CB BSE","_BSE",null,null,"Arzttruppkraftwagen","ATRKW","22","22","12. fest verbautes Funkgerät","K",null,5]
[null,null,null,null,null,"KfSt CB Feuerwehr Technisches Zentrum","_FTZ",null,null,"B-Dienst","B-DIENST","23","23","13. fest verbautes Funkgerät","L",null,8]
[null,null,null,null,null,"KfSt CB Gefahrstoffeinheit","_GSE",null,null,"Betreuungs-Kombinationskraftwagen","BTKOMBI","24","24","14. fest verbautes Funkgerät","M",null,7]
[null,null,null,null,null,"KfSt CB Sanitätseinheit","_SANE",null,null,"Betreuungslastkraftwagen","BTLKW","25","25","15. fest verbautes Funkgerät","N",null,5]
[null,null,null,null,null,"KfSt FF 00 – Stadt Frankfurt/Oder","_00",null,null,"B-NAW (Baby-NAW)","BNAW","26","26","16. fest verbautes Funkgerät","O",null,4]
[null,null,null,null,null,"KfSt FF 01 – Frankfurt/Oder Stadt (BF)","_1",null,null,"CBRN-Erkundungswagen","CBRNERKW","27","27","17. fest verbautes Funkgerät","P",null,8]
[null,null,null,null,null,"KfSt FF 02 – Bossen","_2",null,null,"CBRN-Messleitkomponente","CBRN-MLK","28","28","18. fest verbautes Funkgerät","Q",null,8]
[null,null,null,null,null,"KfSt FF 03 – Güldendorf","_3",null,null,"C-Dienst","C-DIENST","29","29","19. fest verbautes Funkgerät","R",null,8]
[null,null,null,null,null,"KfSt FF 04 – Hohenwalde","_4",null,null,"Dekon LKW","DEKONLKW","30","30","20. fest verbautes Funkgerät","S",null,8]
[null,null,null,null,null,"KfSt FF 05 – Klistow","_5",null,null,"Dekontaminationslastkraftwagen, Personen","DEKONP","31","31","21. fest verbautes Funkgerät","T",null,6]
[null,null,null,null,null,"KfSt FF 06 – Lichtenberg","_6",null,null,"Dekontaminationslastkraftwagen, Personen 2","DEKONP+","32","32","22. fest verbautes Funkgerät","U",null,7]
[null,null,null,null,null,"KfSt FF 07 – Lossow","_7",null,null,"Dekontaminationslastkraftwagen, Schnelldekontamination","DEKONS","33","33","23. fest verbautes Funkgerät","V",null,6]
["WERTE MÜSSEN SORTIERT SEIN, sonst funktioniert die Auswahlliste nicht!!!!",null,null,null,null,"KfSt FF 08 – Frankfurt/Oder Stadt (FF Mitte)","_8",null,null,"Dekontaminationslastkraftwagen, Verletzte","DEKONV","34","34","24. fest verbautes Funkgerät","W",null,6]
[null,null,null,null,null,"KfSt FF 09 – Rosengarten","_9",null,null,"DL 16/4","DL16","35","35","25. fest verbautes Funkgerät","X",null,4]
[null,null,null,null,null,"KfSt FF BSE","_BSE",null,null,"DL 22","DL22","36","36","26. fest verbautes Funkgerät","Y",null,4]
[null,null,null,null,null,"KfSt FF Feuerwehr Technisches Zentrum ","_FTZ",null,null,"DL 30 W 50","DL30W50","37","37","27. fest verbautes Funkgerät","Z",null,7]
[null,null,null,null,null,"KfSt FF Gefahrstoffeinheit","_GSE",null,null,"DL/DLK 12/9","DL(K)12","38","38",null,null,null,7]
[null,null,null,null,null,"KfSt FF Sanitätseinheit","_SANE",null,null,"DL/DLK 16/4","DL(K)16","39","39",null,null,null,7]
[null,null,null,null,null,"KfSt P 00 – Stadt Potsdam","_00",null,null,"DL/DLK 18/12","DL(K)18","40","40",null,null,null,7]
[null,null,null,null,null,"KfSt P 01 – Potsdam Stadt (BF)","_1",null,null,"DL/DLK 23/12(DL30)","DL(K)23","41","41",null,null,null,7]
[null,null,null,null,null,"KfSt P 02 – Babelsberg","_2",null,null,"DLA (K) 12/9","DLA(K)12","42","42",null,null,null,8]
[null,null,null,null,null,"KfSt P 03 – Bornim","_3",null,null,"DLA (K) 18/9","DLA(K)18","43","43",null,null,null,8]
[null,null,null,null,null,"KfSt P 04 – Bornstedt","_4",null,null,"DLA (K) 23/12","DLA(K)23","44","44",null,null,null,8]
[null,null,null,null,null,"KfSt P 05 – Drewitz","_5",null,null,"Einheitsführer (KatS./BSE/SanE)","EF","45","45",null,null,null,2]
[null,null,null,null,null,"KfSt P 06 – Eiche","_6",null,null,"ELW 1","ELW 1","46","46",null,null,null,5]
[null,null,null,null,null,"KfSt P 07 – Klein-Glienicke","_7",null,null,"ELW 2","ELW 2","47","47",null,null,null,5]
[null,null,null,null,null,"KfSt P 08 – Sacrow","_8",null,null,"ELW 3","ELW 3","48","48",null,null,null,5]
[null,null,null,null,null,"KfSt P 09 – Grube","_9",null,null,"ErkW","ERKW","49","49",null,null,null,4]
[null,null,null,null,null,"KfSt P 10 – Potsdam Stadt (FF)","_10",null,null,"Fachberater Chemie","FB Chem.","50","50",null,null,null,8]
[null,null,null,null,null,"KfSt P 11 – Fahrland","_11",null,null,"Fahrzeug der Rettungshundestaffel","MTW-HUND","51","51",null,null,null,8]
[null,null,null,null,null,"KfSt P 12 – Groß Glienicke","_12",null,null,"First Responder","FR","52","52",null,null,null,2]
[null,null,null,null,null,"KfSt P 13 – Marquardt","_13",null,null,"Flugfeldlöschfahrzeug","FLF","53","53",null,null,null,3]
[null,null,null,null,null,"KfSt P 14 – Neufahrland","_14",null,null,"Führungsstelle besondere Lagen, Stab","BEFEHLST","54","54",null,null,null,8]
[null,null,null,null,null,"KfSt P 15 – Uetz / Paaren","_15",null,null,"FÜKW (DDR Produktion, W353, B1000)","KDOW","55","55",null,null,null,4]
[null,null,null,null,null,"KfSt P 16 – Golm","_16",null,null,"FW-Kran","FW-KRAN","56","56",null,null,null,7]
[null,null,null,null,null,"KfSt P 17 – Satzkorn","_17",null,null,"Gerätewagen Behandlung","GW-BEH","57","57",null,null,null,6]
[null,null,null,null,null,"KfSt P BSE","_BSE",null,null,"Gerätewagen Betreuung","GW-BT","58","58",null,null,null,5]
[null,null,null,null,null,"KfSt P Feuerwehr Technisches Zentrum","_FTZ",null,null,"Gerätewagen Dekon Personal","GWDEKONP","59","59",null,null,null,8]
[null,null,null,null,null,"KfSt P Gefahrstoffeinheit","_GSE",null,null,"Gerätewagen Dekon Verletzter","GWDEKONV","60","60",null,null,null,8]
[null,null,null,null,null,"KfSt P Sanitätseinheit","_SANE",null,null,"Gerätewagen Rettungsdienst","GW-RD","61","61",null,null,null,5]
[null,null,null,null,null,"Land BB 00","_00",null,null,"Gerätewagen Sanität (z.B. Medizinischen Task Force)","GW-SAN","62","62",null,null,null,6]
[null,null,null,null,null,"Land BB LSTE","_LSTE",null,null,"GM","GM","63","63",null,null,null,2]
[null,null,null,null,null,"Land BB Prüfstelle","_PRÜF",null,null,"Großflughafenlöschfahrzeug","GFLF","64","64",null,null,null,4]
[null,null,null,null,null,"LK BAR 00 – Landkreis","_00",null,null,"Großraum RTW","GR-RTW","65","65",null,null,null,6]
[null,null,null,null,null,"LK BAR 01 - Bernau b. Berlin","_1",null,null,"GW-Atemschutz","GW-A","66","66",null,null,null,{"$f":"LEN(K67)","v":4}]
[null,null,null,null,null,"LK BAR 02 - Eberswalde","_2",null,null,"GWG","GW-G","67","67",null,null,null,4]
[null,null,null,null,null,"LK BAR 03 - Gemeinde Ahrensfelde","_3",null,null,"GW-G 1","GW-G 1","68","68",null,null,null,6]
[null,null,null,null,null,"LK BAR 04 - Gemeinde Schorfheide","_4",null,null,"GW-G 2","GW-G 2","69","69",null,null,null,6]
[null,null,null,null,null,"LK BAR 05 - Amt Biesenthal-Barnim","_5",null,null,"GW-Höhenrettung","GW-HÖRTG","70","70",null,null,null,8]
[null,null,null,null,null,"LK BAR 06 - Gemeinde Wandlitz","_6",null,null,"GW-Licht","GW-LICHT","71","71",null,null,null,8]
[null,null,null,null,null,"LK BAR 07 - Werneuchen","_7",null,null,"GW-Logistik 1","GW-L1","72","72",null,null,null,5]
[null,null,null,null,null,"LK BAR 08 - Amt Joachimsthal-Schorfheide","_8",null,null,"GW-Logistik 2","GW-L2","73","73",null,null,null,5]
[null,null,null,null,null,"LK BAR 09 - Amt Britz-Chorin-Oderberg","_9",null,null,"GW-Meß","GW-MESS","74","74",null,null,null,7]
[null,null,null,null,null,"LK BAR 10 - Gemeinde Panketal","_10",null,null,"GW-Nachschub","GW-N","75","75",null,null,null,4]
[null,null,null,null,null,"LK BAR Brandschutzeinheit","_BSE",null,null,"GW-Öl","GW-ÖL","76","76",null,null,null,5]
[null,null,null,null,null,"LK BAR Feuerwehr Technisches Zentrum","_FTZ",null,null,"GW-Strahlenschutz","GW-S","77","77",null,null,null,4]
[null,null,null,null,null,"LK BAR Gefahrstoffeinheit","_GSE",null,null,"GW-Tauchen (TauchEinsatzFahrzeug)","GW-TEF","78","78",null,null,null,6]
[null,null,null,null,null,"LK BAR Medical Task Force","_MTF",null,null,"GW-Tauchtrupp","GW-TEF","79","79",null,null,null,6]
[null,null,null,null,null,"LK BAR Sanitätseinheit","_SANE",null,null,"GW-Transport","GW-T","80","80",null,null,null,4]
[null,null,null,null,null,"LK EE 00 – Landkreis","_00",null,null,"GW-Versorgung","GW-V","81","81",null,null,null,4]
[null,null,null,null,null,"LK EE 01 - Stadt Bad Liebenwerda","_1",null,null,"GW-Wassergefahren","GW-WG","82","82",null,null,null,5]
[null,null,null,null,null,"LK EE 02 - Stadt Elsterwerda","_2",null,null,"GW-Wasserrettung","GW-W","82","82",null,null,null,4]
[null,null,null,null,null,"LK EE 03 - Stadt Finsterwalde","_3",null,null,"HAB 18/12","HAB18","83","83",null,null,null,5]
[null,null,null,null,null,"LK EE 04 - Stadt Doberlug-Kirchhain","_4",null,null,"HAB 23/12","HAB23","84","84",null,null,null,5]
[null,null,null,null,null,"LK EE 05 - Amt Elsterland","_5",null,null,"Helfer vor Ort","HvO","85","85",null,null,null,3]
[null,null,null,null,null,"LK EE 06 - Stadt Falkenberg/Elster","_6",null,null,"HLF 10 (neue Norm)","HLF10","86","86",null,null,null,5]
[null,null,null,null,null,"LK EE 07 - Stadt Herzberg (Elster)","_7",null,null,"HLF 10/6","HLF10/6","87","87",null,null,null,7]
[null,null,null,null,null,"LK EE 08 – Amt Kleine Elster (Niederlausitz)","_8",null,null,"HLF 16/12","HLF16/12","88","88",null,null,null,8]
[null,null,null,null,null,"LK EE 09 - Stadt Mühlberg/Elbe","_9",null,null,"HLF 20 (neue Norm)","HLF20","89","89",null,null,null,5]
[null,null,null,null,null,"LK EE 10 - Amt Plesa","_10",null,null,"HLF 20/16","HLF20/16","90","90",null,null,null,8]
[null,null,null,null,null,"LK EE 11 - Gemeinde Röderland","_11",null,null,"Hundestaffel (allgemein)","HUND-ST","91","91",null,null,null,7]
[null,null,null,null,null,"LK EE 12 - Amt Schlieben","_12",null,null,"ITW","ITW","92","92",null,null,null,3]
[null,null,null,null,null,"LK EE 13 - Stadt Schönwalde","_13",null,null,"IuK Technik","TECHNIK","93","93",null,null,null,7]
[null,null,null,null,null,"LK EE 14 - Amt Schradenland","_14",null,null,"Kleineinsatzfahrzeug","KEF","94","94",null,null,null,3]
[null,null,null,null,null,"LK EE 15 - Stadt Sonnenwalde","_15",null,null,"KLF","KLF","95","95",null,null,null,3]
[null,null,null,null,null,"LK EE 16 - Stadt Uebigau-Wahrenbrück","_16",null,null,"Kommandowagen","KDOW","96","96",null,null,null,4]
[null,null,null,null,null,"LK EE Brandschutzeinheit","_BSE",null,null,"Krad","KRAD","97","97",null,null,null,4]
[null,null,null,null,null,"LK EE Feuerwehr Technisches Zentrum","_FTZ",null,null,"Krankentransportwagen Typ B","KTW-B","98","98",null,null,null,5]
[null,null,null,null,null,"LK EE Gefahrstoffeinheit","_GSE",null,null,"Kreisbrandmeister","KBM","99","99",null,null,null,3]
[null,null,null,null,null,"LK EE Medical Task Force","_MTF",null,null,"KTW","KTW",null,null,null,null,null,3]
[null,null,null,null,null,"LK EE Sanitätseinheit","_SANE",null,null,"KTW 4-Tragen","KTW-4TR",null,null,null,null,null,7]
[null,null,null,null,null,"LK HVL 00 – Landkreis","_00",null,null,"KTW Typ B ","KTW-B",null,null,null,null,null,5]
[null,null,null,null,null,"LK HVL 01 - Stadt Falkensee","_1",null,null,"KTW-A1","KTW-A1",null,null,null,null,null,6]
[null,null,null,null,null,"LK HVL 02 - Stadt Ketzin","_2",null,null,"KTW-A2","KTW-A2",null,null,null,null,null,6]
[null,null,null,null,null,"LK HVL 03 - Stadt Nauen","_3",null,null,"Landesbranddirektor","LBD",null,null,null,null,null,3]
[null,null,null,null,null,"LK HVL 04 - Stadt Premnitz","_4",null,null,"Lastkraftwagen Logistik Betreuung","BTLKW",null,null,null,null,null,5]
[null,null,null,null,null,"LK HVL 05 - Stadt Rathenow","_5",null,null,"Leitender Notarzt","LNA",null,null,null,null,null,3]
[null,null,null,null,null,"LK HVL 06 – Gemeinde Brieselang","_6",null,null,"Leiter Berufsfeuerwehr","LTR.BF",null,null,null,null,null,6]
[null,null,null,null,null,"LK HVL 07 – Gemeinde Dallgow-Döberitz","_7",null,null,"Leiter Werkfeuerwehr","LTR.WF",null,null,null,null,null,6]
[null,null,null,null,null,"LK HVL 08 – Gemeinde Milower Land","_8",null,null,"LF 10 (neue Norm)","LF10",null,null,null,null,null,4]
[null,null,null,null,null,"LK HVL 09 – Gemeinde Schönwalde-Glien","_9",null,null,"LF 10/6","LF10/6",null,null,null,null,null,6]
[null,null,null,null,null,"LK HVL 10 – Gemeinde Wustermark","_10",null,null,"LF 16","LF16",null,null,null,null,null,4]
[null,null,null,null,null,"LK HVL 11 - Amt Friesack","_11",null,null,"LF 16/12","LF16/12",null,null,null,null,null,7]
[null,null,null,null,null,"LK HVL 12 - Amt Nennhausen","_12",null,null,"LF 16-TS","LF16-TS",null,null,null,null,null,7]
[null,null,null,null,null,"LK HVL 13 - Amt Rihnow","_13",null,null,"LF 20 (neue Norm)","LF20",null,null,null,null,null,4]
[null,null,null,null,null,"LK HVL Brandschutzeinheit","_BSE",null,null,"LF 20/16","LF20/16",null,null,null,null,null,7]
[null,null,null,null,null,"LK HVL Feuerwehr Technisches Zentrum","_FTZ",null,null,"LF 24","LF24",null,null,null,null,null,4]
[null,null,null,null,null,"LK HVL Gefahrstoffeinheit","_GSE",null,null,"LF 8","LF8",null,null,null,null,null,3]
[null,null,null,null,null,"LK HVL Medical Task Force","_MTF",null,null,"LF 8/6","LF8/6",null,null,null,null,null,5]
[null,null,null,null,null,"LK HVL Sanitätseinheit","_SANE",null,null,"LF 8-TS","LF8-TS",null,null,null,null,null,6]
[null,null,null,null,null,"LK LDS 00 – Landkreis","_00",null,null,"LF KatS","LF-KATS",null,null,null,null,null,7]
[null,null,null,null,null,"LK LDS 01 - Stadt Lübben (Spreewald)","_1",null,null,"LKW","LKW",null,null,null,null,null,3]
[null,null,null,null,null,"LK LDS 02 – Gemeinde Bestensee","_2",null,null,"LKW 3,5t","GW-L1",null,null,null,null,null,5]
[null,null,null,null,null,"LK LDS 03 – Gemeinde Eichwalde","_3",null,null,"Löschboot LB","LB",null,null,null,null,null,2]
[null,null,null,null,null,"LK LDS 04 - Stadt Königs Wusterhausen","_4",null,null,"Luftbeobachter","LUB",null,null,null,null,null,3]
[null,null,null,null,null,"LK LDS 05 – Gemeinde Schulzendorf","_5",null,null,"Mannschaftstransportfahrzeug","MTW",null,null,null,null,null,3]
[null,null,null,null,null,"LK LDS 06 – Gemeinde Wildau","_6",null,null,"Mannschaftstransportwagen","MTW",null,null,null,null,null,3]
[null,null,null,null,null,"LK LDS 07 – Gemeinde Zeuthen","_7",null,null,"Mehrzweckboot","MZB",null,null,null,null,null,3]
[null,null,null,null,null,"LK LDS 08 – Gemeinde Heidsee","_8",null,null,"MLF","MLF",null,null,null,null,null,{"$f":"LEN(K131)","v":3}]
[null,null,null,null,null,"LK LDS 09 – Amt Unterspreewald","_9",null,null,"Mobile Personenauskunftsstelle (mPASt)","MPAST",null,null,null,null,null,5]
[null,null,null,null,null,"LK LDS 10 – Gemeinde Heideblick","_10",null,null,"MTW BHP25","MTW-SAN",null,null,null,null,null,7]
[null,null,null,null,null,"LK LDS 12 - Stadt Luckau","_12",null,null,"MTW Dekon Verletzter","MTW-DEKV",null,null,null,null,null,8]
[null,null,null,null,null,"LK LDS 13 – Gemeinde Märkische Heide","_13",null,null,"MTW FüTr","KDOW",null,null,null,null,null,4]
[null,null,null,null,null,"LK LDS 14 - Stadt Mittenwalde","_14",null,null,"MTW SEG Sanität","MTW-SAN",null,null,null,null,null,7]
[null,null,null,null,null,"LK LDS 15 - Amt Lieberose-Oberspreewald ","_15",null,null,"MTW TSA","MTW-TSA",null,null,null,null,null,7]
[null,null,null,null,null,"LK LDS 16 - Amt Schenkenländchen","_16",null,null,"MTW+","MTW+",null,null,null,null,null,4]
[null,null,null,null,null,"LK LDS 17 – Gemeinde Schönefeld","_17",null,null,"NAW","NAW",null,null,null,null,null,3]
[null,null,null,null,null,"LK LDS 22 – WF Tropical-Island Management GmbH","_22",null,null,"NEF","NEF",null,null,null,null,null,3]
[null,null,null,null,null,"LK LDS Brandschutzeinheit","_BSE",null,null,"Organisationsleiter Rettungsdienst","ORGL RD",null,null,null,null,null,7]
[null,null,null,null,null,"LK LDS Feuerwehr Technisches Zentrum","_FTZ",null,null,"Regionalleitstelle Brandenburg","BRB",null,null,null,null,null,3]
[null,null,null,null,null,"LK LDS Gefahrstoffeinheit","_GSE",null,null,"Regionalleitstelle Lausitz","LAUSITZ",null,null,null,null,null,7]
[null,null,null,null,null,"LK LDS Medical Task Force","_MTF",null,null,"Regionalleitstelle Nordost","NORDOST",null,null,null,null,null,7]
[null,null,null,null,null,"LK LDS Sanitätseinheit","_SANE",null,null,"Regionalleitstelle Nordwest (Potsdam)","NORDWEST",null,null,null,null,null,8]
[null,null,null,null,null,"LK LDS WF Airport Berlin Brandenburg International BER","_BER",null,null,"Regionalleitstelle Oderland","ODERLAND",null,null,null,null,null,8]
[null,null,null,null,null,"LK LOS 00 – Landkreis","_00",null,null,"Rettungsboot","RTB",null,null,null,null,null,3]
[null,null,null,null,null,"LK LOS 01 - Stadt Beeskow","_1",null,null,"Rettungshubschrauber","RTH",null,null,null,null,null,3]
[null,null,null,null,null,"LK LOS 02 - Stadt Eisenhüttenstadt","_2",null,null,"RTGW","RTGW",null,null,null,null,null,4]
[null,null,null,null,null,"LK LOS 03 - Stadt Fürstenwalde/Spree","_3",null,null,"RTW","RTW",null,null,null,null,null,3]
[null,null,null,null,null,"LK LOS 04 - Stadt Erkner","_4",null,null,"RW 1","RW1",null,null,null,null,null,3]
[null,null,null,null,null,"LK LOS 05 - Gemeinde Schöneiche b. Berlin","_5",null,null,"RW 2","RW2",null,null,null,null,null,3]
[null,null,null,null,null,"LK LOS 06 - Gemeinde Woltersdorf","_6",null,null,"RW 3","RW3",null,null,null,null,null,3]
[null,null,null,null,null,"LK LOS 07 – Amt Brieskow-Finkenherd ","_7",null,null,"Sanitäter vor Ort","SanvO",null,null,null,null,null,5]
[null,null,null,null,null,"LK LOS 08 - Stadt Friedland","_8",null,null,"Schlauchwagen KatS","SW-KATS",null,null,null,null,null,7]
[null,null,null,null,null,"LK LOS 09 - Gemeinde Grünheide (Mark)","_9",null,null,"SEG Betreuung","BTKOMBI",null,null,null,null,null,7]
[null,null,null,null,null,"LK LOS 10 – Amt Neuzelle","_10",null,null,"SEG San","SEG-SAN",null,null,null,null,null,7]
[null,null,null,null,null,"LK LOS 11 – Amt Odervorland","_11",null,null,"SEG-FM","SEG-FM",null,null,null,null,null,6]
[null,null,null,null,null,"LK LOS 12 - Gemeinde Rietz-Neuendorf","_12",null,null,"SEG-Technik","SEG-TECH",null,null,null,null,null,8]
[null,null,null,null,null,"LK LOS 13 – Amt Scharmützelsee","_13",null,null,"sonst. Tanklöschfahrzeuge","TLF",null,null,null,null,null,3]
[null,null,null,null,null,"LK LOS 14 – Amt Schlaubetal","_14",null,null,"Sonstige GW","GW",null,null,null,null,null,2]
[null,null,null,null,null,"LK LOS 15 – Amt Spreenhagen","_15",null,null,"sonstige RW","RW",null,null,null,null,null,2]
[null,null,null,null,null,"LK LOS 16 - Gemeinde Steinhöfel","_16",null,null,"Staffellöschfahrzeug","STLF",null,null,null,null,null,4]
[null,null,null,null,null,"LK LOS 17 – Stadt Storkow (Mark)","_17",null,null,"StLF 10/6","STLF10/6",null,null,null,null,null,8]
[null,null,null,null,null,"LK LOS 18 - Gemeinde Tauche","_18",null,null,"STW","STW",null,null,null,null,null,3]
[null,null,null,null,null,"LK LOS Brandschutzeinheit","_BSE",null,null,"SW 1000","SW1000",null,null,null,null,null,6]
[null,null,null,null,null,"LK LOS Feuerwehr Technisches Zentrum","_FTZ",null,null,"SW 12","SW12",null,null,null,null,null,4]
[null,null,null,null,null,"LK LOS Gefahrstoffeinheit","_GSE",null,null,"SW 14","SW14",null,null,null,null,null,4]
[null,null,null,null,null,"LK LOS Medical Task Force","_MTF",null,null,"SW 2000","SW2000",null,null,null,null,null,6]
[null,null,null,null,null,"LK LOS Sanitätseinheit","_SANE",null,null,"SW 2000 Tr","SW2000Tr",null,null,null,null,null,8]
[null,null,null,null,null,"LK LOS WF Arcelor Mittal","_AMEH",null,null,"SW 3000","SW3000",null,null,null,null,null,6]
[null,null,null,null,null,"LK MOL 00 – Landkreis","_00",null,null,"Tanklöschfahrzeug 2000","TLF2000 ",null,null,null,null,null,8]
[null,null,null,null,null,"LK MOL 01 - Gemeinde Fredersdorf-Vogelsdorf","_1",null,null,"Tanklöschfahrzeug 3000","TLF3000",null,null,null,null,null,7]
[null,null,null,null,null,"LK MOL 02 - Gemeinde Neuenhagen b. Berlin","_2",null,null,"Tanklöschfahrzeug 4000","TLF4000",null,null,null,null,null,7]
[null,null,null,null,null,"LK MOL 03 - Gemeinde Petershagen-Eggersdorf","_3",null,null,"Tanklöschfahrzeug 5000","TLF5000",null,null,null,null,null,7]
[null,null,null,null,null,"LK MOL 04 - Stadt Seelow","_4",null,null,"Tankwagen 18000","TW18-W",null,null,null,null,null,6]
[null,null,null,null,null,"LK MOL 05 - Stadt Strausberg","_5",null,null,"Tankwagen/Tankzug","TW/TZ",null,null,null,null,null,5]
[null,null,null,null,null,"LK MOL 06 - Stadt Altlandsberg","_6",null,null,"TLF 10/18","TLF10/18",null,null,null,null,null,8]
[null,null,null,null,null,"LK MOL 07 - Stadt Bad Freienwalde (Oder)","_7",null,null,"TLF 10/20","TLF10/20",null,null,null,null,null,8]
[null,null,null,null,null,"LK MOL 08 – Amt Barnim-Oderbruch","_8",null,null,"TLF 16 W 50","TLF16",null,null,null,null,null,5]
[null,null,null,null,null,"LK MOL 09 – Amt Falkenberg-Höhe","_9",null,null,"TLF 16/24 Trupp","TLF16/24",null,null,null,null,null,8]
[null,null,null,null,null,"LK MOL 10 – Amt Golzow","_10",null,null,"TLF 16/25","TLF16/25",null,null,null,null,null,8]
[null,null,null,null,null,"LK MOL 11 - Gemeinde Hoppegarten","_11",null,null,"TLF 16/45","TLF16/45",null,null,null,null,null,8]
[null,null,null,null,null,"LK MOL 12 – Amt Lebus","_12",null,null,"TLF 20/30","TLF20/30",null,null,null,null,null,8]
[null,null,null,null,null,"LK MOL 13 - Gemeinde Letschin","_13",null,null,"TLF 20/40","TLF20/40",null,null,null,null,null,8]
[null,null,null,null,null,"LK MOL 14 – Amt Märkische-Schweiz","_14",null,null,"TLF 20/40 Sonderlöschmittel","TLF-SL",null,null,null,null,null,6]
[null,null,null,null,null,"LK MOL 15 - Stadt Müncheberg","_15",null,null,"TLF 20/50","TLF20/50",null,null,null,null,null,8]
[null,null,null,null,null,"LK MOL 16 – Amt Neuhardenberg","_16",null,null,"TLF 24/48","TLF24/48",null,null,null,null,null,8]
[null,null,null,null,null,"LK MOL 17 - Gemeinde Rüdersdorf b. Berlin","_17",null,null,"TLF 24/50","TLF24/50",null,null,null,null,null,8]
[null,null,null,null,null,"LK MOL 18 – Amt Seelow-Land","_18",null,null,"TLF 32 Tatra","TLF32",null,null,null,null,null,5]
[null,null,null,null,null,"LK MOL 19 - Stadt Wriezen","_19",null,null,"TLF 8/18","TLF8/18",null,null,null,null,null,7]
[null,null,null,null,null,"LK MOL Brandschutzeinheit","_BSE",null,null,"TLK 42","TLK42",null,null,null,null,null,5]
[null,null,null,null,null,"LK MOL Feuerwehr Technisches Zentrum","_FTZ",null,null,"TM","TM",null,null,null,null,null,2]
[null,null,null,null,null,"LK MOL Gefahrstoffeinheit","_GSE",null,null,"tragbare FuG","HFG",null,null,null,null,null,3]
[null,null,null,null,null,"LK MOL Medical Task Force","_MTF",null,null,"Tragkraftspritzenanhänger","TSA",null,null,null,null,null,{"$f":"LEN(K195)","v":3}]
[null,null,null,null,null,"LK MOL Sanitätseinheit","_SANE",null,null,"Tro TLF 16","TROTLF16",null,null,null,null,null,8]
[null,null,null,null,null,"LK OHV 00 – Landkreis","_00",null,null,"Tro-LF","TRO-LF",null,null,null,null,null,6]
[null,null,null,null,null,"LK OHV 01 – Gemeinde Birkenwerder","_1",null,null,"TSF","TSF",null,null,null,null,null,3]
[null,null,null,null,null,"LK OHV 02 – Gemeinde Glienicke/Nordbahn","_2",null,null,"TSF-W","TSF-W",null,null,null,null,null,5]
[null,null,null,null,null,"LK OHV 03 - Stadt Henningsdorf","_3",null,null,"Universal Löschfahrzeug","ULF",null,null,null,null,null,3]
[null,null,null,null,null,"LK OHV 04 - Stadt Hohen Neuendorf","_4",null,null,"VGW","VGW",null,null,null,null,null,3]
[null,null,null,null,null,"LK OHV 05 – Gemeinde Leegebruch","_5",null,null,"Vorauslöschfahrzeug","VLF ",null,null,null,null,null,3]
[null,null,null,null,null,"LK OHV 06 - Stadt Oranienburg","_6",null,null,"VRW","VRW",null,null,null,null,null,3]
[null,null,null,null,null,"LK OHV 07 - Stadt Velten","_7",null,null,"Wachabteilungsleiter","WAL",null,null,null,null,null,3]
[null,null,null,null,null,"LK OHV 08 - Stadt Fürstenberg/Havel","_8",null,null,"Wache","WACHE",null,null,null,null,null,5]
[null,null,null,null,null,"LK OHV 09 - Amt Gransee","_9",null,null,"Wehrführer","WEFÜ",null,null,null,null,null,4]
[null,null,null,null,null,"LK OHV 10 - Stadt Kremmen","_10",null,null,"Werkstattwagen","WSW",null,null,null,null,null,3]
[null,null,null,null,null,"LK OHV 11 - Stadt Liebenwalde","_11",null,null,"WLF","WLF",null,null,null,null,null,3]
[null,null,null,null,null,"LK OHV 12 – Gemeinde Löwenberger Land","_12",null,null,"WLF 18","WLF18",null,null,null,null,null,5]
[null,null,null,null,null,"LK OHV 13 – Gemeinde Oberkrämer","_13",null,null,"WLF 26","WLF26",null,null,null,null,null,5]
[null,null,null,null,null,"LK OHV 15 – Gemeinde Mühlenbecker Land","_15",null,null,"z. b. V. Land","        "]
[null,null,null,null,null,"LK OHV 16 - Stadt Zehdenick","_16",null,null,"Zugfahrz. Küche","KÜKW",null,null,null,null,null,4]
[null,null,null,null,null,"LK OHV Brandschutzeinheit","_BSE"]
[null,null,null,null,null,"LK OHV Feuerwehr Technisches Zentrum","_FTZ"]
[null,null,null,null,null,"LK OHV Gefahrstoffeinheit","_GSE"]
[null,null,null,null,null,"LK OHV Medical Task Force","_MTF"]
[null,null,null,null,null,"LK OHV Sanitätseinheit","_SANE"]
[null,null,null,null,null,"LK OPR 00 – Landkreis","_00"]
[null,null,null,null,null,"LK OPR 01 - Stadt Neuruppin","_1"]
[null,null,null,null,null,"LK OPR 02 - Stadt Wittstock / Dosse","_2"]
[null,null,null,null,null,"LK OPR 03 – Gemeinde Fehrbellin","_3"]
[null,null,null,null,null,"LK OPR 04 – Gemeinde Heiligengrabe","_4"]
[null,null,null,null,null,"LK OPR 05 - Stadt Kyritz","_5"]
[null,null,null,null,null,"LK OPR 06 - Amt Lindow (Mark)","_6"]
[null,null,null,null,null,"LK OPR 07 - Amt Neustadt / Dosse","_7"]
[null,null,null,null,null,"LK OPR 08 - Stadt Rheinsberg","_8"]
[null,null,null,null,null,"LK OPR 09 - Amt Temnitz","_9"]
[null,null,null,null,null,"LK OPR 11 – Gemeinde Wusterhausen / Dosse","_11"]
[null,null,null,null,null,"LK OPR 13 - Bundeswehr TrübPl WK","_13"]
[null,null,null,null,null,"LK OPR Brandschutzeinheit","_BSE"]
[null,null,null,null,null,"LK OPR Feuerwehr Technisches Zentrum","_FTZ"]
[null,null,null,null,null,"LK OPR Gefahrstoffeinheit","_GSE"]
[null,null,null,null,null,"LK OPR Krono - Kronotex GmbH & Co. KG","KRONO"]
[null,null,null,null,null,"LK OPR Medical Task Force","_MTF"]
[null,null,null,null,null,"LK OPR Sanitätseinheit","_SANE"]
[null,null,null,null,null,"LK OSL 00 – Landkreis","_00"]
[null,null,null,null,null,"LK OSL 01 - Stadt Lauchhammer/Spreewald","_1"]
[null,null,null,null,null,"LK OSL 02 - Stadt Schwarzheide","_2"]
[null,null,null,null,null,"LK OSL 03 - Stadt Senftenberg","_3"]
[null,null,null,null,null,"LK OSL 04 - Amt Altdöbern","_4"]
[null,null,null,null,null,"LK OSL 06 - Stadt Calau","_6"]
[null,null,null,null,null,"LK OSL 07 - Stadt Großräschen","_7"]
[null,null,null,null,null,"LK OSL 08 - Stadt Lübbenau/Spreewald ","_8"]
[null,null,null,null,null,"LK OSL 09 - Amt Ortrand","_9"]
[null,null,null,null,null,"LK OSL 10 - Amt Ruhland","_10"]
[null,null,null,null,null,"LK OSL 11 – Gemeinde Schipkau","_11"]
[null,null,null,null,null,"LK OSL 12 - Stadt Vetschau/Spreewald","_12"]
[null,null,null,null,null,"LK OSL BASF - BASF Schwartzheide GmbH","_BASF"]
[null,null,null,null,null,"LK OSL Brandschutzeinheit","_BSE"]
[null,null,null,null,null,"LK OSL Feuerwehr Technisches Zentrum","_FTZ"]
[null,null,null,null,null,"LK OSL Gefahrstoffeinheit","_GSE"]
[null,null,null,null,null,"LK OSL Medical Task Force","_MTF"]
[null,null,null,null,null,"LK OSL Sanitätseinheit","_SANE"]
[null,null,null,null,null,"LK PM 00 – Landkreis","_00"]
[null,null,null,null,null,"LK PM 01 - Gemeinde Kleinmachnow","_1"]
[null,null,null,null,null,"LK PM 02 - Gemeinde Seddiner See","_2"]
[null,null,null,null,null,"LK PM 03 - Stadt Teltow","_3"]
[null,null,null,null,null,"LK PM 04 - Stadt Werder","_4"]
[null,null,null,null,null,"LK PM 05 - Stadt Beelitz","_5"]
[null,null,null,null,null,"LK PM 06 - Amt Beetzsee","_6"]
[null,null,null,null,null,"LK PM 07 - Stadt Belzig","_7"]
[null,null,null,null,null,"LK PM 08 - Amt Brück","_8"]
[null,null,null,null,null,"LK PM 11 - Gemeinde Groß Kreutz (Havel)","_11"]
[null,null,null,null,null,"LK PM 12 - Gemeinde Kloster Lehnin","_12"]
[null,null,null,null,null,"LK PM 13 - Gemeinde Michendorf","_13"]
[null,null,null,null,null,"LK PM 14 - Amt Niemegk","_14"]
[null,null,null,null,null,"LK PM 15 - Gemeinde Nuthetal","_15"]
[null,null,null,null,null,"LK PM 16 - Gemeinde Schwielowsee","_16"]
[null,null,null,null,null,"LK PM 17 - Gemeinde Stahnsdorf","_17"]
[null,null,null,null,null,"LK PM 18 - Stadt Treuenbrietzen","_18"]
[null,null,null,null,null,"LK PM 20 - Gemeinde Wiesenburg/Mark","_20"]
[null,null,null,null,null,"LK PM 21 - Amt Wusterwitz","_21"]
[null,null,null,null,null,"LK PM 22 - Amt Ziesar","_22"]
[null,null,null,null,null,"LK PM 24 - Bundeswehr TrübPl WK","_24"]
[null,null,null,null,null,"LK PM Brandschutzeinheit","_BSE"]
[null,null,null,null,null,"LK PM Feuerwehr Technisches Zentrum","_FTZ"]
[null,null,null,null,null,"LK PM Gefahrstoffeinheit","_GSE"]
[null,null,null,null,null,"LK PM Medical Task Force","_MTF"]
[null,null,null,null,null,"LK PM Sanitätseinheit","_SANE"]
[null,null,null,null,null,"LK PR 00 – Landkreis","_00"]
[null,null,null,null,null,"LK PR 10 - Stadt Perleberg","_10"]
[null,null,null,null,null,"LK PR 20 - Gemeinde Karstädt","_20"]
[null,null,null,null,null,"LK PR 25 - Gemeinde Groß Pankow","_25"]
[null,null,null,null,null,"LK PR 30 - Stadt Wittenberge","_30"]
[null,null,null,null,null,"LK PR 35 - Gemeinde Gumtow","_35"]
[null,null,null,null,null,"LK PR 40 - Amt Bad Wilsnack / Weisen","_40"]
[null,null,null,null,null,"LK PR 45 - Gemeinde Plattenburg","_45"]
[null,null,null,null,null,"LK PR 50 - Amt Lenzen-Elbaue","_50"]
[null,null,null,null,null,"LK PR 60 - Stadt Pritzwalk","_60"]
[null,null,null,null,null,"LK PR 70 - Amt Putlitz-Berge","_70"]
[null,null,null,null,null,"LK PR 80 - Amt Meyenburg","_80"]
[null,null,null,null,null,"LK PR Brandschutzeinheit","_BSE"]
[null,null,null,null,null,"LK PR Gefahrstoffeinheit","_GSE"]
[null,null,null,null,null,"LK PR Medical Task Force","_MTF"]
[null,null,null,null,null,"LK SPN 00 – Landkreis","_00"]
[null,null,null,null,null,"LK SPN 01 - Stadt Forst","_1"]
[null,null,null,null,null,"LK SPN 02 - Stadt Guben","_2"]
[null,null,null,null,null,"LK SPN 03 - Gemeinde Kolkwitz","_3"]
[null,null,null,null,null,"LK SPN 04 - Stadt Spremberg","_4"]
[null,null,null,null,null,"LK SPN 05 – Amt Burg","_5"]
[null,null,null,null,null,"LK SPN 06 – Amt Döbern-Land","_6"]
[null,null,null,null,null,"LK SPN 07 - Stadt Drebkau","_7"]
[null,null,null,null,null,"LK SPN 10 – Gemeinde Neuhausen/Spree","_10"]
[null,null,null,null,null,"LK SPN 11 - Amt Peitz","_11"]
[null,null,null,null,null,"LK SPN 12 – Gemeinde Schenkendöbern","_12"]
[null,null,null,null,null,"LK SPN 13 - Stadt Welzow","_13"]
[null,null,null,null,null,"LK SPN Brandschutzeinheit","_BSE"]
[null,null,null,null,null,"LK SPN Feuerwehr Technisches Zentrum","_FTZ"]
[null,null,null,null,null,"LK SPN Gefahrstoffeinheit","_GSE"]
[null,null,null,null,null,"LK SPN Medical Task Force","_MTF"]
[null,null,null,null,null,"LK SPN Sanitätseinheit","_SANE"]
[null,null,null,null,null,"LK SPN WF Lausitz Energie AG","LEAG"]
[null,null,null,null,null,"LK TF 00 – Landkreis","_00"]
[null,null,null,null,null,"LK TF 01 - Stadt Luckenwalde","_1"]
[null,null,null,null,null,"LK TF 02 - Stadt Ludwigsfelde","_2"]
[null,null,null,null,null,"LK TF 03 - Gemeinde Nuthe-Urstromtal","_3"]
[null,null,null,null,null,"LK TF 04 - Gemeinde Am Mellensee","_4"]
[null,null,null,null,null,"LK TF 05 - Stadt Baruth/Mark","_5"]
[null,null,null,null,null,"LK TF 06 - Gemeinde Blankenfelde-Mahlow","_6"]
[null,null,null,null,null,"LK TF 07 - Amt Dahme/Mark","_7"]
[null,null,null,null,null,"LK TF 08 - Stadt Jüterbog","_8"]
[null,null,null,null,null,"LK TF 09 - Gemeinde Großbeeren","_9"]
[null,null,null,null,null,"LK TF 10 - Gemeinde Niederer Fläming","_10"]
[null,null,null,null,null,"LK TF 11 - Gemeinde Niedergörsdorf","_11"]
[null,null,null,null,null,"LK TF 12 - Gemeinde Rangsdorf","_12"]
[null,null,null,null,null,"LK TF 13 - Stadt Trebbin","_13"]
[null,null,null,null,null,"LK TF 14 - Stadt Zossen","_14"]
[null,null,null,null,null,"LK TF Brandschutzeinheit","_BSE"]
[null,null,null,null,null,"LK TF Feuerwehr Technisches Zentrum","_FTZ"]
[null,null,null,null,null,"LK TF Gefahrstoffeinheit","_GSE"]
[null,null,null,null,null,"LK TF Medical Task Force","_MTF"]
[null,null,null,null,null,"LK TF Sanitätseinheit","_SANE"]
[null,null,null,null,null,"LK TF WF MB","_MB"]
[null,null,null,null,null,"LK UM 00 – Landkreis","_00"]
[null,null,null,null,null,"LK UM 01 - Stadt Angermünde","_1"]
[null,null,null,null,null,"LK UM 02 - Stadt Prenzlau","_2"]
[null,null,null,null,null,"LK UM 03 - Stadt Schwedt/Oder","_3"]
[null,null,null,null,null,"LK UM 04 - Stadt Templin","_4"]
[null,null,null,null,null,"LK UM 06 - Gemeinde Boitzenburger Land","_6"]
[null,null,null,null,null,"LK UM 07 - Amt Brüssow (Uckermark)","_7"]
[null,null,null,null,null,"LK UM 08 - Amt Gartz (Oder)","_8"]
[null,null,null,null,null,"LK UM 09 - Amt Gerswalde","_9"]
[null,null,null,null,null,"LK UM 10 - Amt Gramzow","_10"]
[null,null,null,null,null,"LK UM 11 - Gemeinde Uckerland","_11"]
[null,null,null,null,null,"LK UM 12 - Stadt Lychen","_12"]
[null,null,null,null,null,"LK UM 13 - Gemeinde Nordwestuckermark","_13"]
[null,null,null,null,null,"LK UM 14 - Amt Oder-Welse","_14"]
[null,null,null,null,null,"LK UM Brandschutzeinheit","_BSE"]
[null,null,null,null,null,"LK UM Feuerwehr Technisches Zentrum","_FTZ"]
[null,null,null,null,null,"LK UM Gefahrstoffeinheit","_GSE"]
[null,null,null,null,null,"LK UM Medical Task Force","_MTF"]
[null,null,null,null,null,"LK UM Sanitätseinheit","_SANE"]
[null,null,null,null,null,"LK UM WF Leipa","LEIPA"]
[null,null,null,null,null,"LK UM WF PCK","_PCK"]
[null,null,null,null,null,"LK UM WF UPM","_UPM"]
[null,null,null,null,null,"Regionalleitstelle",""]

{"sheet":"OPTA Tabelle","index":3,"n_rows":103,"n_cols":2,"rows_kept":103,"cut":false,"hidden":false,"merged":[]}
[]
[]
["Nr.","OPTA Tabelle für ASBB"]
[1,"BB                      "]
[2]
[3]
[4]
[5]
[6]
[7]
[8]
[9]
[10]
[11]
[12]
[13]
[14]
[15]
[16]
[17]
[18]
[19]
[20]
[21]
[22]
[23]
[24]
[25]
[26]
[27]
[28]
[29]
[30]
[31]
[32]
[33]
[34]
[35]
[36]
[37]
[38]
[39]
[40]
[41]
[42]
[43]
[44]
[45]
[46]
[47]
[48]
[49]
[50]
[51]
[52]
[53]
[54]
[55]
[56]
[57]
[58]
[59]
[60]
[61]
[62]
[63]
[64]
[65]
[66]
[67]
[68]
[69]
[70]
[71]
[72]
[73]
[74]
[75]
[76]
[77]
[78]
[79]
[80]
[81]
[82]
[83]
[84]
[85]
[86]
[87]
[88]
[89]
[90]
[91]
[92]
[93]
[94]
[95]
[96]
[97]
[98]
[99]
[100]

{"sheet":"STC Hinweise","index":4,"n_rows":36,"n_cols":2,"rows_kept":36,"cut":false,"hidden":true,"merged":[]}
["http://www.office-loesung.de/ftopic267168_0_0_asc.php"]
[null,"MAKRO"]
[]
["http://www.herber.de/forum/archiv/216to220/t216610.htm"]
[null,"rw1 = Cells(Rows.Count, 1).End(xlUp).Row"]
[]
[null,"das ist relativ einfach:"]
[]
[null,"\"rw1\" ist eine Variable die einen Wert aufnehmen soll"]
[null,"\"Cells\" verweist auf die Zellen"]
[null,"\"Rows.Count\" ist eine Funktion welche die Anzahl Zeilen im Tabellenblatt zurückgibt ( = 65536)"]
[null,"\",1\" in welcher Spalte gesucht werden soll ( hier A)"]
[null,"\".End\" weisst EXCEL an, dass es dort beginnen soll zu zählen"]
[null,"\"xlUp\" ist die Richtung in welche EXCEL suchen soll"]
[null,"\".Row\" gibt die erste zeile von unten zurück, wo etwas drinsteht"]
[]
[]
["http://www.vbarchiv.net/tipps/details.php?id=430"]
[null,"' API-Deklaration"]
[null,"Private Declare Function Beep Lib \"kernel32\" ( _"]
[null,"  ByVal dwFreq As Long, _"]
[null,"  ByVal dwDuration As Long) As Long"]
[]
[null,"Der erste Paramater gibt die Frequenz in Hertz an. Dieser Wert muss im Bereich 37 und 32.767 liegen. Je höher der Wert, desto höher der Ton! Der zweite Parameter wirkt sich nur unter WinNT/2000/XP aus und bestimmt die Dauer (Länge) des Tons. Je höher der Wert, desto länger wird der Ton abgespielt."]
[]
[null,"' Beispiel"]
[null,"Private Sub Command1_Click()"]
[null,"  Beep 1000, 50"]
[null,"End Sub"]
[]
["DropDown Verschachtelt"]
["http://www.excelformeln.de/tips.html?welcher=84"]
["=BEREICH.VERSCHIEBEN(Werte!H1:Z22;1;VERGLEICH(C11;Werte!H1:Z1;0)-1;ANZAHL2(INDEX(Werte!H1:Z22;;VERGLEICH(C11;Werte!H1:Z1;0)))-1;1)"]
[]
["Schutz"]
["Blatt Schutzen unter Extras"]